bitfinex/quotes_BTCUSD_20210101
["timestamp","ask_amount","ask_price","bid_price","bid_amount"]
[1609510553540,5.67239738,29483.0,29482.0,0.31422945]
[1609510553847,5.62684629,29483.0,29482.0,0.31182945]
[1609510554040,5.36222803,29483.0,29482.0,0.31182945]
[1609510554445,3.49906012,29483.0,29482.0,0.31182945]
[1609510554647,5.6922571,29483.0,29482.0,0.17042945]
[1609510555257,6.5376571,29483.0,29482.0,0.17042945]
[1609510555656,4.0376571,29483.0,29482.0,0.17042945]
[1609510556255,4.34446012,29483.0,29482.0,0.17042945]
[1609510556457,4.36214421,29483.0,29482.0,0.17042945]
[1609510556762,4.43062842,29483.0,29482.0,0.17042945]
[1609510556962,4.60022842,29483.0,29482.0,0.17042945]
[1609510557460,4.52949205,29483.0,29482.0,0.17042945]
[1609510557660,4.52949205,29483.0,29482.0,0.18118654]
[1609510557859,4.22268903,29483.0,29482.0,0.01075709]
[1609510558170,2.81217678,29483.0,29482.0,0.01075709]
[1609510558363,2.21204732,29483.0,29482.0,0.01075709]
[1609510558863,1.75304339,29483.0,29482.0,0.01075709]
[1609510559164,1.83455799,29483.0,29482.0,0.01075709]
[1609510559365,1.55955799,29483.0,29482.0,0.01075709]
[1609510559566,1.47804339,29483.0,29482.0,0.01075709]
[1609510559766,1.47804339,29483.0,29479.0,0.37585709]
[1609510560064,0.363999,29480.0,29479.0,0.37585709]
[1609510562105,0.358999,29480.0,29479.0,0.37585709]
[1609510563007,0.36307693,29480.0,29479.0,0.37585709]
[1609510563412,0.358999,29480.0,29479.0,0.37585709]
[1609510564635,0.358999,29480.0,29479.0,0.23475709]
[1609510566680,0.36307702,29480.0,29479.0,0.23475709]
[1609510566986,0.46632702,29480.0,29479.0,0.23475709]
[1609510567185,0.36307702,29480.0,29479.0,0.23475709]
[1609510567587,0.358999,29480.0,29479.0,0.33754177]
[1609510567783,0.358999,29480.0,29479.0,0.23475709]
[1609510569444,0.353999,29480.0,29479.0,0.23475709]
[1609510569641,0.353999,29480.0,29479.0,0.09365709]
[1609510570543,0.35808124,29480.0,29479.0,0.09365709]
[1609510572662,0.353999,29480.0,29479.0,0.09365709]
[1609510574767,0.353999,29480.0,29475.0,1.09145709]
[1609510575367,0.35809138,29480.0,29475.0,1.09145709]
[1609510576070,0.198694,29478.0,29475.0,1.09145709]
[1609510578197,0.2027977,29478.0,29475.0,1.09145709]
[1609510578592,0.00410603,29477.0,29475.0,1.09145709]
[1609510578794,0.35399,29476.0,29475.0,1.09145709]
[1609510578992,0.35399,29476.0,29475.0,0.6778]
[1609510579599,0.46612792,29476.0,29475.0,0.6778]
[1609510579797,0.54839041,29476.0,29475.0,0.5346]
[1609510580402,0.46612792,29476.0,29475.0,0.5346]
[1609510582712,0.58951221,29476.0,29475.0,0.5346]
[1609510583105,0.58951221,29476.0,29475.0,0.54535969]
[1609510584144,0.58951221,29476.0,29475.0,0.34535969]
[1609510585044,0.58951221,29476.0,29475.0,0.20245969]
[1609510586047,0.58951221,29476.0,29475.0,0.01075969]
[1609510586452,0.46612792,29476.0,29475.0,0.01075969]
[1609510588348,0.46832889,29476.0,29475.0,0.01075969]
[1609510589673,0.46612792,29476.0,29475.0,0.01075969]
[1609510590080,0.198694,29473.0,29472.0,0.37425969]
[1609510590884,0.30810003,29473.0,29472.0,0.37425969]
[1609510592379,0.51098003,29473.0,29472.0,0.37425969]
[1609510593685,0.30810003,29473.0,29472.0,0.37425969]
[1609510594701,0.30810003,29473.0,29472.0,3.22425969]
[1609510594904,0.10940603,29473.0,29472.0,3.58832069]
[1609510595208,0.19183319,29473.0,29472.0,1.15662069]
[1609510595412,1.44148816,29473.0,29472.0,0.23255969]
[1609510595608,1.44368913,29473.0,29471.0,0.0008]
[1609510595811,3.183623,29472.0,29471.0,0.0008]
[1609510596076,1.18582397,29472.0,29471.0,0.0008]
[1609510596274,0.995,29471.0,29470.0,0.1462]
[1609510596476,1.36126197,29471.0,29470.0,0.1462]
[1609510597071,1.59553195,29471.0,29470.0,0.1462]
[1609510597583,2.59553195,29471.0,29468.0,0.0006]
[1609510597787,2.59553195,29471.0,29462.0,0.0008]
[1609510597788,3.395,29467.0,29463.0,0.0004]
[1609510598090,3.51904228,29461.0,29460.0,0.177216]
[1609510598280,4.37602325,29461.0,29460.0,0.173416]
[1609510598519,0.30680302,29458.0,29457.0,0.0004]
[1609510598718,0.30680302,29457.0,29456.0,0.0006]
[1609510598911,1.30180302,29455.0,29451.0,0.0014]
[1609510599112,3.45582397,29454.0,29451.0,0.0014]
[1609510599405,3.95197699,29454.0,29451.0,0.0014]
[1609510599607,5.37573461,29454.0,29451.0,0.0014]
[1609510599809,5.06893159,29454.0,29451.0,0.0014]
[1609510600013,5.06673062,29454.0,29452.0,0.0097]
[1609510600209,4.434061,29453.0,29452.0,0.0097]
[1609510600406,4.82086402,29453.0,29452.0,0.0097]
[1609510600710,4.96719831,29453.0,29452.0,0.0097]
[1609510601016,1.70219831,29453.0,29452.0,0.0097]
[1609510601214,0.59039529,29453.0,29452.0,0.0097]
[1609510601510,1.37130509,29453.0,29452.0,0.0097]
[1609510601713,0.584061,29453.0,29452.0,5.2597]
[1609510602012,0.0820088,29457.0,29453.0,0.364061]
[1609510602219,0.00410008,29454.0,29453.0,0.364061]
[1609510602525,0.00409946,29458.0,29454.0,5.25]
[1609510602715,0.00409946,29458.0,29455.0,0.364061]
[1609510602915,0.00409907,29459.0,29455.0,0.364061]
[1609510603108,0.00409907,29459.0,29455.0,0.359061]
[1609510603320,0.00409865,29462.0,29457.0,1.042361]
[1609510603515,0.00409865,29462.0,29457.0,0.6783]
[1609510603914,0.08,29465.0,29457.0,0.6785]
[1609510603915,0.00409858,29461.0,29457.0,0.6785]
[1609510604130,0.00409858,29461.0,29458.0,0.364223]
[1609510604331,0.00409858,29461.0,29459.0,0.6783]
[1609510604533,0.364223,29460.0,29459.0,0.6783]
[1609510604731,0.00409858,29461.0,29459.0,2.3283]
[1609510604937,0.00409811,29462.0,29460.0,2.814223]
[1609510605134,0.08,29461.0,29460.0,2.673223]
[1609510605334,0.08,29461.0,29460.0,2.814223]
[1609510605538,0.08,29461.0,29460.0,0.364223]
[1609510605742,0.444198,29461.0,29458.0,0.5089]
[1609510605940,0.444198,29461.0,29458.0,0.5087]
[1609510606139,0.444198,29461.0,29456.0,0.0002]
[1609510606342,0.364198,29460.0,29456.0,0.0002]
[1609510606637,0.364198,29460.0,29455.0,0.4989]
[1609510607143,0.364198,29460.0,29459.0,0.6783]
[1609510607740,1.439198,29460.0,29459.0,0.6783]
[1609510607940,2.249198,29460.0,29459.0,0.6783]
[1609510608138,2.249198,29460.0,29458.0,0.0002]
[1609510608341,2.604464,29459.0,29458.0,0.0002]
[1609510608538,3.599464,29459.0,29457.0,0.6783]
[1609510608747,1.19100102,29458.0,29457.0,0.6733]
[1609510608937,1.509198,29458.0,29453.0,0.0002]
[1609510609250,0.364198,29453.0,29452.0,0.009038]
[1609510609638,0.364198,29453.0,29452.0,0.758838]
[1609510610162,0.364198,29453.0,29452.0,0.615138]
[1609510610362,0.364198,29453.0,29451.0,0.8495]
[1609510610566,0.364198,29453.0,29451.0,0.8493]
[1609510611308,0.364198,29453.0,29451.0,0.8443]
[1609510611703,0.08,29457.0,29451.0,0.8443]
[1609510611903,0.364198,29456.0,29451.0,0.8445]
[1609510612101,0.364198,29456.0,29451.0,0.3445]
[1609510612509,0.444198,29456.0,29451.0,0.3445]
[1609510612810,0.334464,29452.0,29451.0,0.3445]
[1609510612999,0.414464,29452.0,29451.0,0.3443]
[1609510615238,0.414464,29452.0,29450.0,0.4838]
[1609510615239,0.364198,29451.0,29450.0,0.4838]
[1609510615439,0.364198,29451.0,29450.0,0.4836]
[1609510616342,0.444198,29451.0,29450.0,0.4786]
[1609510617744,1.439198,29451.0,29450.0,0.4786]
[1609510617952,2.704464,29450.0,29449.0,0.0016]
[1609510618140,0.334464,29450.0,29449.0,0.001]
[1609510618447,0.364198,29448.0,29442.0,0.7567]
[1609510618648,0.560048,29448.0,29442.0,0.7567]
[1609510619858,0.5641491,29448.0,29442.0,0.7567]
[1609510620062,0.08,29447.0,29445.0,0.509]
[1609510620257,0.334464,29446.0,29445.0,0.3679]
[1609510620459,0.479464,29446.0,29445.0,0.3679]
[1609510620854,0.559464,29446.0,29445.0,0.3679]
[1609510622362,0.414464,29446.0,29445.0,0.3679]
[1609510623361,0.414464,29446.0,29445.0,1.6179]
[1609510623560,0.08,29446.0,29445.0,1.6179]
[1609510623966,0.08,29446.0,29445.0,1.982098]
[1609510624365,0.08,29446.0,29445.0,2.982098]
[1609510624571,0.00410317,29448.0,29445.0,2.982098]
[1609510624793,0.0041044,29449.0,29446.0,0.649198]
[1609510624979,0.0041044,29449.0,29446.0,0.364198]
[1609510625380,0.0041044,29449.0,29446.0,0.220798]
[1609510625691,0.00410428,29450.0,29446.0,0.0002]
[1609510626329,0.00410428,29450.0,29447.0,0.364292]
[1609510626643,0.00410966,29448.0,29447.0,0.364292]
[1609510626837,0.24046945,29449.0,29447.0,0.309292]
[1609510627047,0.24046945,29449.0,29448.0,5.614292]
[1609510627245,0.24046945,29449.0,29448.0,6.164292]
[1609510627444,0.08230813,29450.0,29449.0,5.614292]
[1609510627637,0.08230813,29450.0,29449.0,5.822052]
[1609510627845,0.08,29460.0,29449.0,5.822052]
[1609510627846,0.12356873,29452.0,29449.0,5.822052]
[1609510628144,0.08,29460.0,29451.0,5.614292]
[1609510628145,0.12355939,29454.0,29451.0,5.614292]
[1609510628339,0.12355812,29455.0,29453.0,5.114292]
[1609510628596,0.12355812,29455.0,29454.0,3.714292]
[1609510628796,0.12355578,29456.0,29454.0,3.714292]
[1609510628992,0.12355578,29456.0,29454.0,3.114292]
[1609510629198,0.12355578,29456.0,29455.0,2.964292]
[1609510630395,0.12354539,29457.0,29455.0,2.820592]
[1609510630593,0.12354539,29457.0,29456.0,2.414492]
[1609510631197,0.12354539,29457.0,29456.0,2.414292]
[1609510631392,0.12354539,29457.0,29456.0,3.514292]
[1609510631592,0.12354539,29457.0,29456.0,3.014292]
[1609510632195,0.12357928,29458.0,29457.0,3.039639]
[1609510632415,0.12357928,29458.0,29457.0,3.039839]
[1609510632617,0.32954807,29463.0,29457.0,0.339839]
[1609510632824,0.364242,29462.0,29457.0,0.0002]
[1609510633129,0.11857992,29458.0,29456.0,0.0398]
[1609510633318,0.11857992,29458.0,29457.0,0.364242]
[1609510633521,0.15257609,29461.0,29457.0,0.364242]
[1609510633824,0.364242,29460.0,29456.0,0.04]
[1609510634125,0.1525926,29459.0,29455.0,0.364242]
[1609510634922,0.15265382,29461.0,29455.0,0.364242]
[1609510635118,0.15265382,29461.0,29458.0,0.6783]
[1609510635322,0.364242,29460.0,29458.0,0.6783]
[1609510635518,0.364242,29460.0,29458.0,0.5356]
[1609510636122,0.15264589,29459.0,29458.0,0.5356]
[1609510636530,0.15264589,29459.0,29458.0,0.899842]
[1609510636725,0.15267884,29461.0,29458.0,0.899842]
[1609510636922,0.15267884,29461.0,29458.0,0.900042]
[1609510637221,0.15267884,29461.0,29458.0,0.5358]
[1609510637626,0.15267207,29460.0,29458.0,0.5358]
[1609510637824,0.15267207,29460.0,29459.0,0.364242]
[1609510638270,0.15267207,29460.0,29458.0,0.20534097]
[1609510638469,0.15266477,29461.0,29459.0,0.339624]
[1609510638669,0.13266477,29461.0,29458.0,0.20534097]
[1609510638870,0.13266477,29461.0,29457.0,0.6783]
[1609510638871,0.61317657,29458.0,29457.0,0.6783]
[1609510639070,0.61317657,29458.0,29457.0,1.017947]
[1609510639467,0.7653894,29458.0,29457.0,1.017947]
[1609510640571,0.7653894,29458.0,29457.0,0.876547]
[1609510641254,0.7653894,29458.0,29457.0,1.626547]
[1609510641457,0.7403894,29458.0,29457.0,0.876547]
[1609510642564,0.7403894,29458.0,29457.0,0.5369]
[1609510642858,1.1046174,29458.0,29457.0,0.5369]
[1609510643058,1.3046174,29458.0,29457.0,0.5369]
[1609510643593,1.3046174,29458.0,29457.0,0.5319]
[1609510645260,0.9403894,29458.0,29457.0,0.871552]
[1609510645482,0.9403894,29458.0,29457.0,0.729552]
[1609510646680,0.7403894,29458.0,29457.0,0.729552]
[1609510647180,0.7403894,29458.0,29457.0,1.929552]
[1609510648083,0.7403894,29458.0,29457.0,2.929552]
[1609510648385,0.7403894,29458.0,29457.0,1.929552]
[1609510650287,0.7403894,29458.0,29457.0,4.129552]
[1609510650681,0.7403894,29458.0,29457.0,4.140542]
[1609510650977,0.7403894,29458.0,29457.0,4.740542]
[1609510653506,0.7403894,29458.0,29457.0,4.715542]
[1609510653906,0.8352604,29458.0,29457.0,4.715542]
[1609510654408,0.8352604,29458.0,29457.0,2.360452]
[1609510655009,0.8352604,29458.0,29457.0,3.160452]
[1609510655207,0.8352604,29458.0,29457.0,2.360452]
[1609510655814,0.8352604,29458.0,29457.0,2.216652]
[1609510656503,0.8352604,29458.0,29457.0,1.616652]
[1609510657104,0.8352604,29458.0,29457.0,3.116652]
[1609510658508,0.8352604,29458.0,29457.0,1.616652]
[1609510658960,0.8352604,29458.0,29457.0,3.116652]
[1609510659461,0.8352604,29458.0,29457.0,3.571652]
[1609510660563,0.8352604,29458.0,29457.0,3.116652]
[1609510660766,0.8352604,29458.0,29457.0,2.975452]
[1609510661566,0.8352604,29458.0,29457.0,1.475452]
[1609510661967,0.8352604,29458.0,29457.0,3.025452]
[1609510662164,0.8352604,29458.0,29457.0,3.703752]
[1609510662394,0.8352604,29458.0,29457.0,3.913752]
[1609510664697,0.8352604,29458.0,29457.0,4.093752]
[1609510664898,0.8352604,29458.0,29457.0,4.993752]
[1609510665296,0.8352604,29458.0,29457.0,4.093752]
[1609510665709,0.8352604,29458.0,29457.0,1.201852]
[1609510665913,0.8352604,29458.0,29457.0,2.211852]
[1609510666306,0.8352604,29458.0,29457.0,2.438642]
[1609510666501,0.8352604,29458.0,29457.0,2.898642]
[1609510666908,0.8352604,29458.0,29457.0,4.648642]
[1609510667502,0.8352604,29458.0,29457.0,2.898642]
[1609510667903,0.8352604,29458.0,29457.0,4.448642]
[1609510669034,0.8352604,29458.0,29457.0,6.78211012]
[1609510669534,0.32522444,29461.0,29460.0,5.383533]
[1609510669729,0.15780845,29469.0,29461.0,5.884]
[1609510669925,0.15780845,29469.0,29465.0,0.133498]
[1609510670130,0.15780845,29469.0,29463.0,0.16697512]
[1609510670340,0.995,29468.0,29466.0,0.4842]
[1609510670536,0.364232,29467.0,29465.0,0.5085]
[1609510670739,0.549232,29467.0,29464.0,0.26146501]
[1609510670924,0.364232,29467.0,29464.0,0.26146501]
[1609510671143,0.15780845,29469.0,29464.0,0.26146501]
[1609510671346,0.364232,29468.0,29464.0,0.26146501]
[1609510672146,0.364232,29468.0,29465.0,0.51926312]
[1609510672550,1.359232,29468.0,29465.0,0.51926312]
[1609510672850,0.035385,29470.0,29465.0,0.51926312]
[1609510672851,0.364232,29466.0,29465.0,0.51926312]
[1609510673047,0.364232,29466.0,29465.0,0.51426312]
[1609510673446,1.359232,29466.0,29465.0,0.51426312]
[1609510673699,0.364232,29466.0,29465.0,0.51426312]
[1609510675896,0.364232,29466.0,29465.0,0.37316312]
[1609510678532,0.444232,29466.0,29465.0,0.37316312]
[1609510679531,1.439232,29466.0,29465.0,0.37316312]
[1609510679739,4.05375378,29466.0,29465.0,0.01076312]
[1609510679939,4.2445757,29466.0,29465.0,3.12e-06]
[1609510680132,4.84672986,29466.0,29465.0,3.12e-06]
[1609510680332,6.87562986,29466.0,29465.0,3.12e-06]
[1609510680727,5.68178485,29466.0,29465.0,3.12e-06]
[1609510680937,0.87449116,29462.0,29449.0,0.45593305]
[1609510681142,0.364232,29457.0,29450.0,0.0002]
[1609510681337,0.364232,29452.0,29450.0,0.0002]
[1609510681531,0.364232,29451.0,29450.0,0.0002]
[1609510681729,0.11879,29452.0,29449.0,0.45593305]
[1609510681730,0.364232,29450.0,29449.0,0.45593305]
[1609510681928,0.589332,29450.0,29449.0,0.45593305]
[1609510682232,0.669332,29450.0,29449.0,0.45593305]
[1609510683047,0.589332,29450.0,29449.0,0.45593305]
[1609510683748,0.589332,29450.0,29449.0,2.00593305]
[1609510684749,0.73502509,29450.0,29449.0,2.00593305]
[1609510685459,0.14569309,29450.0,29449.0,2.13953905]
[1609510685658,0.22806996,29450.0,29449.0,4.48953905]
[1609510685854,0.22806996,29450.0,29449.0,4.64233905]
[1609510686057,0.08235991,29451.0,29449.0,4.64233905]
[1609510686262,0.08235991,29451.0,29450.0,2.4238]
[1609510686463,0.05735991,29451.0,29450.0,2.4238]
[1609510686765,0.04735991,29451.0,29450.0,3.0854]
[1609510686963,0.19221288,29451.0,29450.0,3.0852]
[1609510687361,0.14482287,29459.0,29450.0,3.0852]
[1609510687568,0.30680302,29457.0,29451.0,0.22948426]
[1609510687877,0.14482287,29459.0,29455.0,0.133565]
[1609510688067,0.14482287,29459.0,29456.0,0.155]
[1609510688266,0.14482287,29459.0,29457.0,0.133551]
[1609510688699,0.14481615,29465.0,29457.0,0.133551]
[1609510688898,0.364232,29464.0,29456.0,0.4571]
[1609510689103,0.14481615,29465.0,29457.0,0.642246]
[1609510689300,0.14481615,29465.0,29457.0,0.642446]
[1609510689494,0.14481615,29465.0,29458.0,0.6542]
[1609510689795,0.14481615,29465.0,29458.0,0.6544]
[1609510690398,0.14481615,29465.0,29459.0,0.133534]
[1609510690593,0.14481615,29465.0,29459.0,0.133734]
[1609510691097,0.14481615,29465.0,29458.0,0.906734]
[1609510693794,0.14481615,29465.0,29458.0,0.646734]
[1609510694197,0.14481615,29465.0,29458.0,1.03166456]
[1609510694435,6.15e-06,29465.0,29459.0,0.62705868]
[1609510694641,0.035385,29470.0,29465.0,0.5084]
[1609510694942,0.035385,29470.0,29466.0,0.21309812]
[1609510695135,0.035385,29470.0,29466.0,0.59601956]
[1609510695337,0.0002,29477.0,29467.0,5.66638956]
[1609510695533,0.15293887,29478.0,29468.0,0.97981546]
[1609510695729,0.15293887,29478.0,29469.0,0.40999386]
[1609510695940,0.00205607,29471.0,29469.0,0.40999386]
[1609510696131,0.00205607,29471.0,29470.0,6.26646812]
[1609510696527,6.07e-06,29471.0,29470.0,6.26646812]
[1609510696735,2.14e-06,29472.0,29471.0,5.75829393]
[1609510696931,1.035e-05,29473.0,29471.0,6.35829393]
[1609510697130,1.035e-05,29473.0,29472.0,0.40999386]
[1609510697331,0.0002,29479.0,29472.0,0.64827386]
[1609510697531,0.0002,29479.0,29473.0,0.37652574]
[1609510697830,0.0002,29479.0,29474.0,0.03346812]
[1609510698132,0.0002,29479.0,29473.0,0.03346812]
[1609510698533,0.0002,29479.0,29474.0,0.6581]
[1609510698731,0.0002,29479.0,29474.0,1.1161]
[1609510698932,0.0002,29479.0,29475.0,0.25846812]
[1609510699132,0.0002,29479.0,29475.0,0.93616812]
[1609510699433,0.0002,29479.0,29476.0,0.03346812]
[1609510700270,0.0008,29491.0,29476.0,0.03346812]
[1609510700472,0.9952,29488.0,29477.0,5.39]
[1609510700673,0.0002,29488.0,29477.0,5.59]
[1609510700871,0.0002,29488.0,29478.0,0.63346812]
[1609510701071,0.0002,29488.0,29478.0,0.86801812]
[1609510701306,0.0002,29488.0,29479.0,0.6482]
[1609510701508,0.0008,29491.0,29479.0,0.6482]
[1609510701509,0.0004,29489.0,29479.0,0.68166812]
[1609510701712,0.0006,29494.0,29479.0,0.68166812]
[1609510701713,1.0107665,29495.0,29480.0,4.86]
[1609510702012,0.995,29494.0,29480.0,0.26]
[1609510702312,0.13878109,29493.0,29481.0,0.4868]
[1609510702511,0.995,29492.0,29481.0,0.4868]
[1609510702713,0.509231,29491.0,29483.0,0.6777]
[1609510702908,0.364231,29489.0,29483.0,0.6777]
[1609510703206,0.364231,29487.0,29483.0,0.6777]
[1609510703406,0.995,29486.0,29483.0,0.6777]
[1609510703606,0.364231,29485.0,29483.0,0.6777]
[1609510704241,1.359231,29485.0,29483.0,0.6777]
[1609510704642,0.364231,29485.0,29483.0,0.6777]
[1609510704840,1.359231,29485.0,29483.0,0.6777]
[1609510705643,0.995,29484.0,29483.0,0.6777]
[1609510705844,1.594231,29484.0,29483.0,0.6777]
[1609510706656,1.80359278,29484.0,29483.0,0.3777]
[1609510706869,1.195,29483.0,29482.0,5.68e-06]
[1609510707055,2.18041278,29483.0,29482.0,5.68e-06]
[1609510707252,0.995,29473.0,29462.0,0.6501]
[1609510707454,0.995,29473.0,29461.0,0.98944402]
[1609510707455,0.564231,29472.0,29461.0,0.98944402]
[1609510707649,1.195,29471.0,29461.0,0.8474]
[1609510707849,1.359231,29470.0,29461.0,0.94888297]
[1609510708154,0.364231,29468.0,29460.0,0.5087]
[1609510708347,1.23,29467.0,29460.0,0.5087]
[1609510708544,1.205,29467.0,29460.0,0.5087]
[1609510708843,1.195,29467.0,29460.0,0.5087]
[1609510710071,0.364231,29466.0,29460.0,0.5087]
[1609510710271,0.08,29470.0,29460.0,0.5087]
[1609510710569,0.96,29469.0,29460.0,0.5087]
[1609510710767,0.155,29468.0,29460.0,0.5087]
[1609510710968,1.115,29468.0,29460.0,0.5087]
[1609510711465,1.195,29468.0,29460.0,0.5087]
[1609510711667,1.115,29468.0,29460.0,0.5087]
[1609510711868,0.175,29467.0,29460.0,0.5087]
[1609510712475,0.08,29470.0,29460.0,0.5087]
[1609510712875,0.2,29471.0,29460.0,0.5087]
[1609510713074,0.96,29471.0,29460.0,0.5087]
[1609510713277,1.16,29473.0,29461.0,0.03346812]
[1609510713772,0.96,29473.0,29460.0,0.03346812]
[1609510713979,0.14,29472.0,29460.0,0.03346812]
[1609510714180,0.96,29475.0,29460.0,0.03346812]
[1609510714377,0.935,29475.0,29467.0,0.5086]
[1609510714679,0.364231,29477.0,29467.0,0.5086]
[1609510714876,1.299231,29477.0,29467.0,0.5086]
[1609510715103,0.14976284,29474.0,29467.0,0.5086]
[1609510715492,0.14976284,29474.0,29467.0,0.5786]
[1609510715703,0.14982906,29476.0,29468.0,0.03346812]
[1609510715897,0.14982906,29476.0,29468.0,0.21846812]
[1609510716095,0.14982906,29476.0,29469.0,0.4861]
[1609510716354,0.14994584,29479.0,29469.0,0.5561]
[1609510716556,0.14990977,29475.0,29470.0,0.10346812]
[1609510716753,0.14990977,29475.0,29470.0,0.07]
[1609510717148,0.14995184,29478.0,29470.0,0.10346812]
[1609510717344,0.14995184,29478.0,29471.0,0.07]
[1609510717549,0.15293887,29480.0,29471.0,0.07]
[1609510717947,0.15009068,29479.0,29471.0,0.07]
[1609510718148,0.15009068,29479.0,29472.0,0.6778]
[1609510718348,0.15009068,29479.0,29472.0,0.87336]
[1609510718647,0.15009068,29479.0,29473.0,0.24]
[1609510719477,0.15009068,29479.0,29474.0,0.6778]
[1609510722786,0.93,29478.0,29474.0,0.6778]
[1609510722988,0.524231,29477.0,29474.0,0.6778]
[1609510723187,1.454231,29477.0,29474.0,0.6778]
[1609510723488,0.364231,29475.0,29474.0,0.2251]
[1609510724408,0.51500232,29475.0,29474.0,0.2251]
[1609510725801,0.51000232,29475.0,29474.0,0.2251]
[1609510726704,0.51500232,29475.0,29474.0,0.2251]
[1609510727205,0.15077132,29475.0,29474.0,0.2251]
[1609510728215,0.15058357,29479.0,29474.0,0.2251]
[1609510728411,1.294226,29478.0,29474.0,0.0823]
[1609510728714,0.364226,29476.0,29474.0,0.0823]
[1609510729516,0.51481283,29475.0,29474.0,0.0823]
[1609510733482,0.51481283,29475.0,29474.0,0.6778]
[1609510733913,0.51481283,29475.0,29474.0,0.6728]
[1609510734916,0.48981283,29475.0,29474.0,0.6728]
[1609510735419,0.59136024,29475.0,29474.0,0.6728]
[1609510735622,0.48981283,29475.0,29474.0,0.6728]
[1609510736125,0.45591283,29475.0,29474.0,0.6728]
[1609510736323,0.60091283,29475.0,29474.0,0.6728]
[1609510736721,0.93034426,29475.0,29474.0,0.6728]
[1609510737927,2.38034426,29475.0,29474.0,0.6728]
[1609510738428,2.684226,29473.0,29472.0,0.617]
[1609510738633,0.364226,29469.0,29462.0,0.6735]
[1609510738829,0.364226,29468.0,29462.0,0.6735]
[1609510739133,0.14777242,29467.0,29466.0,0.5087]
[1609510739447,0.74572842,29467.0,29466.0,0.5087]
[1609510741848,0.72072842,29467.0,29466.0,0.5087]
[1609510742248,0.92572842,29467.0,29466.0,0.5087]
[1609510744055,1.00572842,29467.0,29466.0,0.5087]
[1609510744253,1.93572842,29467.0,29466.0,0.5087]
[1609510744451,2.70072842,29467.0,29466.0,0.5087]
[1609510744654,2.18072842,29467.0,29466.0,0.5087]
[1609510744853,2.70072842,29467.0,29466.0,0.5087]
[1609510745063,2.50924658,29467.0,29466.0,0.5087]
[1609510745661,3.02924658,29467.0,29466.0,0.5087]
[1609510746162,2.09924658,29467.0,29466.0,0.5087]
[1609510746636,3.13005799,29467.0,29466.0,0.5087]
[1609510746840,3.02924658,29467.0,29466.0,0.5087]
[1609510747140,1.25072842,29467.0,29466.0,0.5087]
[1609510752375,1.25072842,29467.0,29466.0,0.5059]
[1609510753883,1.25072842,29467.0,29466.0,2.3259]
[1609510754096,0.80650242,29467.0,29466.0,2.3259]
[1609510754287,0.12277242,29467.0,29466.0,2.3259]
[1609510754707,0.1227306,29468.0,29466.0,2.35936812]
[1609510754909,0.1227306,29468.0,29467.0,4.825]
[1609510755505,0.12273105,29469.0,29467.0,4.825]
[1609510755716,0.12273105,29469.0,29468.0,5.5178]
[1609510755904,0.12273105,29469.0,29468.0,5.55126812]
[1609510756209,0.08,29479.0,29468.0,5.55126812]
[1609510756210,0.1228391,29471.0,29468.0,5.55126812]
[1609510756404,0.1228391,29471.0,29469.0,0.07]
[1609510756703,0.1228391,29471.0,29469.0,0.6]
[1609510756900,0.1228391,29471.0,29469.0,0.67]
[1609510757304,0.1228391,29471.0,29469.0,0.56196812]
[1609510758306,0.1228391,29471.0,29469.0,0.07]
[1609510758507,0.12282811,29470.0,29469.0,0.07]
[1609510759003,0.12282811,29470.0,29469.0,4.273]
[1609510759404,0.12284974,29471.0,29469.0,4.273]
[1609510759605,0.12284974,29471.0,29470.0,2.52]
[1609510759800,0.12284974,29471.0,29470.0,2.98]
[1609510761550,0.3275621,29473.0,29470.0,2.98]
[1609510761760,0.3275621,29473.0,29471.0,0.9685]
[1609510762259,0.32765271,29474.0,29471.0,0.9685]
[1609510762459,0.32765271,29474.0,29471.0,0.8964]
[1609510763049,0.32765271,29474.0,29471.0,0.5085]
[1609510763252,0.32770174,29475.0,29471.0,0.5085]
[1609510763455,0.32770174,29475.0,29472.0,0.07]
[1609510763883,0.32770174,29475.0,29472.0,0.10346812]
[1609510764079,0.32770174,29475.0,29473.0,0.07]
[1609510764387,0.32770174,29475.0,29473.0,0.22977]
[1609510764787,0.32782619,29477.0,29473.0,0.15977]
[1609510765088,0.21893543,29474.0,29473.0,0.22977]
[1609510765484,0.21893543,29474.0,29473.0,0.47977]
[1609510765789,0.32755802,29477.0,29473.0,0.47977]
[1609510765985,0.21875748,29474.0,29473.0,0.47977]
[1609510766184,0.21875748,29474.0,29473.0,0.40977]
[1609510766488,0.32755802,29477.0,29473.0,0.47977]
[1609510766683,0.32755802,29477.0,29473.0,0.40977]
[1609510766991,0.21887521,29474.0,29473.0,0.47977]
[1609510767288,0.21887521,29474.0,29473.0,0.93227]
[1609510767488,0.32755879,29478.0,29473.0,0.86227]
[1609510767685,0.32755879,29478.0,29473.0,0.93227]
[1609510767891,0.32755879,29478.0,29473.0,1.77947]
[1609510768093,0.54660708,29479.0,29474.0,0.27]
[1609510768493,0.21883733,29479.0,29474.0,0.27]
[1609510768891,0.21888922,29478.0,29474.0,0.27]
[1609510769291,0.21883149,29479.0,29474.0,0.27]
[1609510769926,0.12283409,29475.0,29474.0,0.27]
[1609510770729,0.12283409,29475.0,29474.0,3.62]
[1609510773455,0.12283409,29475.0,29474.0,0.27]
[1609510773657,0.12283409,29475.0,29474.0,2.62]
[1609510773856,0.12275917,29476.0,29474.0,2.62]
[1609510774165,0.15293887,29480.0,29475.0,3.06]
[1609510774363,0.15293887,29480.0,29477.0,0.5083]
[1609510774959,0.21874185,29479.0,29477.0,0.5083]
[1609510775257,0.21874185,29479.0,29477.0,0.9765]
[1609510775657,0.21874185,29479.0,29478.0,1.896]
[1609510775863,1.51296785,29479.0,29478.0,0.746]
[1609510776076,1.75796785,29479.0,29477.0,0.5083]
[1609510776266,2.73,29478.0,29477.0,0.5083]
[1609510776482,0.52,29476.0,29471.0,0.6486]
[1609510776681,0.87102902,29474.0,29471.0,0.6486]
[1609510776877,0.722739,29472.0,29471.0,0.6486]